fUST/lending_fUST_20260112
["ID","MTS","AMOUNT","RATE_DAILY","PERIOD"]
[401375171,1768165838491,-291.40624011,0.00010104,2]
[401375172,1768165838502,-300.0,0.00010305,2]
[401375173,1768165838512,-300.0,0.00010305,2]
[401375174,1768165838523,-300.0,0.00010305,2]
[401375175,1768165838532,-300.0,0.00010305,2]
[401375176,1768165838542,-300.0,0.00010305,2]
[401375177,1768165838551,-300.0,0.00010305,2]
[401375178,1768165838560,-300.0,0.00010305,2]
[401375179,1768165838570,-300.0,0.00010305,2]
[401375180,1768165838581,-300.0,0.00010305,2]
[401375181,1768165838591,-300.0,0.00010305,2]
[401375182,1768165838601,-300.0,0.00010305,2]
[401375183,1768165838611,-300.0,0.00010305,2]
[401375184,1768165838621,-300.0,0.00010305,2]
[401375185,1768165838631,-300.0,0.00010305,2]
[401375186,1768165838641,-300.0,0.00010305,2]
[401375187,1768165838654,-600.0,0.0001051,2]
[401375188,1768165838664,-720.0,0.00011561,2]
[401375189,1768165838674,-343.85936333,0.00012104,2]
[401375190,1768165838685,-864.0,0.00012717,2]
[401375191,1768165838695,-500.0,0.00013699,2]
[401375192,1768165838704,-1000.0,0.00013989,2]
[401375193,1768165838714,-396.31248654,0.00014104,2]
[401375194,1768165838723,-1000.0,0.00014142,2]
[401375195,1768165838733,-1000.0,0.00014247,2]
[401375196,1768165838743,-1500.0,0.00014795,2]
[401375197,1768165838753,-606.515517,0.00015068,2]
[401375198,1768165838762,-2000.0,0.00015342,2]
[401375199,1768165838773,-1000.0,0.00015388,2]
[401375200,1768165838783,-244.0,0.00015388,2]
[401375201,1768165838793,-2500.0,0.0001589,2]
[401375202,1768165838802,-448.76560976,0.00016104,2]
[401375203,1768165838812,-3000.0,0.00016438,2]
[401375204,1768165838822,-1000.0,0.00016927,2]
[401375205,1768165838832,-492.0,0.00016927,2]
[401375206,1768165838842,-3500.0,0.00016986,2]
[401375207,1768165838852,-4000.0,0.00017534,2]
[401375208,1768165838862,-153.35,0.000176,2]
[401375209,1768165838873,-4500.0,0.00018082,2]
[401375210,1768165838884,-501.21873298,0.00018104,2]
[401375211,1768165838894,-606.515517,0.00018493,2]
[401375212,1768165838903,-1000.0,0.00018619,2]
[401375213,1768165838914,-791.0,0.00018619,2]
[401375214,1768165838924,-5000.0,0.0001863,2]
[401375215,1768165838934,-303.10001603,0.000189,2]
[401375216,1768165838945,-346.0,0.0001895,2]
[401375217,1768165838955,-303.10001603,0.00019089,2]
[401375218,1768165838965,-1075.76577137,0.00019142,2]
[401375219,1768165838974,-415.0,0.00019166,2]
[401375220,1768165838984,-242.62689371,0.00019178,2]
[401375221,1768165838995,-4623.1209168,0.00019178,2]
[401375222,1768165839005,-303.10001603,0.00019278,2]
[401375223,1768165839015,-499.0,0.00019388,2]
[401375224,1768165839025,-303.10001603,0.00019467,2]
[401375225,1768165839035,-157.11492552,0.00019647,2]
[401375226,1768165839045,-303.10001603,0.00019656,2]
[401375227,1768165839055,-304.04513064,0.00019845,4]
[401375228,1768165839066,-160.0,0.00019971,2]
[401375229,1768165839078,-151.55000802,0.0002,2]
[401375230,1768165839087,-553.6718562,0.00020104,2]
[401375231,1768165839098,-1000.0,0.00020481,2]
[401375232,1768165839109,-1000.0,0.00020481,2]
[401375233,1768165839119,-841.2,0.00020969,2]
[401375234,1768165839130,-558.0,0.0002098,3]
[401375235,1768165839141,-5000.0,0.00020989,2]
[401375236,1768165839155,-100000.0,0.0002099,2]
[401375237,1768165839164,-844.6563,0.0002099,2]
[401375238,1768165839174,-675.7237,0.0002099,3]
[401375239,1768165839183,-506.79,0.0002099,2]
[401375240,1768165839195,-3000.0,0.00021,2]
[401375241,1768165839205,-3000.0,0.0002101,2]
[401375242,1768165839214,-3000.0,0.0002102,2]
[401375243,1768165839224,-3000.0,0.0002103,2]
[401375244,1768165839233,-3000.0,0.0002104,2]
[401375245,1768165839243,-3000.0,0.0002105,2]
[401375246,1768165839253,-3000.0,0.0002106,2]
[401375247,1768165839262,-3000.0,0.0002107,2]
[401375248,1768165839272,-3000.0,0.0002108,2]
[401375249,1768165839281,-3000.0,0.0002109,2]
[401375250,1768165839291,-3000.0,0.000211,2]
[401375251,1768165839300,-3000.0,0.0002111,2]
[401375252,1768165839310,-3000.0,0.0002112,2]
[401375253,1768165839319,-3000.0,0.0002113,2]
[401375254,1768165839328,-3000.0,0.0002114,2]
[401375255,1768165839337,-2475.71832352,0.00021141,2]
[401375256,1768165839346,-3000.0,0.0002115,2]
[401375257,1768165839355,-3000.0,0.0002116,2]
[401375258,1768165839365,-3000.0,0.0002117,2]
[401375259,1768165839374,-3000.0,0.0002118,2]
[401375260,1768165839383,-3000.0,0.0002119,2]
[401375261,1768165839392,-3000.0,0.000212,2]
[401375262,1768165839402,-167.64,0.000212,2]
[401375263,1768165839411,-164.08,0.000212,2]
[401375264,1768165839421,-162.99,0.000212,2]
[401375265,1768165839430,-151.0,0.000212,3]
[401375266,1768165839440,-3000.0,0.0002121,2]
[401375267,1768165839449,-3000.0,0.0002122,2]
[401375268,1768165839458,-3000.0,0.0002123,2]
[401375269,1768165839467,-3000.0,0.0002124,2]
[401375270,1768165839477,-3000.0,0.0002125,2]
[401375271,1768165839487,-3000.0,0.0002126,2]
[401375272,1768165839496,-3000.0,0.0002127,2]
[401375273,1768165839506,-3000.0,0.0002128,2]
[401375274,1768165839516,-3000.0,0.0002129,2]
[401375275,1768165839526,-3000.0,0.000213,2]
[401375276,1768165839536,-3000.0,0.0002131,2]
[401375277,1768165839545,-3000.0,0.0002132,2]
[401375278,1768165839555,-3000.0,0.0002133,2]
[401375279,1768165839565,-3000.0,0.0002134,2]
[401375280,1768165839574,-3000.0,0.0002135,2]
[401375281,1768165839584,-3000.0,0.0002136,2]
[401375282,1768165839593,-3000.0,0.0002137,2]
[401375283,1768165839603,-3000.0,0.0002138,2]
[401375284,1768165839612,-3000.0,0.0002139,2]
[401375285,1768165839622,-3000.0,0.000214,2]
[401375286,1768165839631,-3000.0,0.0002141,2]
[401375287,1768165839641,-3000.0,0.0002142,2]
[401375288,1768165839651,-3669.21180387,0.0002142,2]
[401375289,1768165839661,-5085.760285,0.0002143,2]
[401375290,1768165839671,-3732.48,0.000215,2]
[401375291,1768165839680,-2475.71832352,0.00021518,2]
[401375292,1768165839690,-151.0,0.000216,4]
[401375293,1768165839699,-42849.388277,0.000216,2]
[401375294,1768165839708,-2475.71832352,0.00021656,2]
[401375295,1768165839718,-151.0,0.000219,3]
[401375296,1768165839727,-606.515517,0.00021918,2]
[401375297,1768165839736,-2475.71832352,0.00021929,2]
[401375298,1768165839746,-10000.0,0.00022,2]
[401375299,1768165839756,-10000.0,0.00022,2]
[401375300,1768165839765,-10000.0,0.00022,2]
[401375301,1768165839775,-10000.0,0.00022,2]
[401375302,1768165839786,-10000.0,0.00022,2]
[401375303,1768165839796,-1048.85,0.00022,2]
[401375304,1768165839805,-10000.0,0.00022,2]
[401375305,1768165839815,-10000.0,0.00022,2]
[401375306,1768165839826,-1041.66666667,0.00022081,2]
[401375307,1768165839836,-606.12497942,0.00022104,2]
[401375308,1768165839846,-841.2,0.00022213,2]
[401375309,1768165839856,-151.0,0.000223,9]
[401375310,1768165839866,-611.55196731,0.00022414,7]
[401375311,1768165839876,-2475.71832352,0.00022418,2]
[401375312,1768165839886,-300.0,0.00022466,2]
[401375313,1768165839895,-3194.48495617,0.00022472,2]
[401375314,1768165839905,-777.48633254,0.00022472,2]
[401375315,1768165839914,-3109.94533018,0.00022472,2]
[401375316,1768165839924,-6990.3796159,0.00022472,2]
[401375317,1768165839933,-1000.0,0.00022529,10]
[401375318,1768165839943,-1000.0,0.00022529,10]
[401375319,1768165839952,-579.0,0.00022529,10]
[401375320,1768165839962,-151.0,0.000226,10]
[401375321,1768165839971,-2475.71832352,0.00022691,2]
[401375322,1768165839982,-1820.0,0.00022769,2]
[401375323,1768165839991,-2475.71832352,0.00022997,2]
[401375324,1768165840001,-151.0,0.00023,6]
[401375325,1768165840009,-450.0,0.00023014,2]
[401375326,1768165840019,-2475.71832352,0.0002326,2]
[401375327,1768165840029,-151.0,0.00023302,2]
[401375328,1768165840039,-2030.29667201,0.00023302,2]
[401375329,1768165840048,-151.0,0.00023302,2]
[401375330,1768165840058,-151.0,0.00023302,2]
[401375331,1768165840068,-151.0,0.00023302,2]
[401375332,1768165840077,-151.0,0.00023302,2]
[401375333,1768165840087,-156.587,0.00023302,2]
[401375334,1768165840096,-151.0,0.00023302,2]
[401375335,1768165840105,-152.09143049,0.00023302,2]
[401375336,1768165840115,-151.0,0.00023302,2]
[401375337,1768165840124,-151.0,0.00023302,2]
[401375338,1768165840134,-151.0,0.00023302,2]
[401375339,1768165840143,-151.0,0.00023302,2]
[401375340,1768165840155,-151.0,0.00023302,2]
[401375341,1768165840163,-151.0,0.00023302,2]
[401375342,1768165840173,-151.0,0.00023302,2]
[401375343,1768165840183,-151.0,0.00023302,2]
[401375344,1768165840192,-151.0,0.00023302,2]
[401375345,1768165840203,-30000.0,0.00023302,2]
[401375346,1768165840213,-151.0,0.00023302,2]
[401375347,1768165840224,-151.0,0.00023302,2]
[401375348,1768165840235,-151.0,0.00023302,2]
[401375349,1768165840244,-151.0,0.00023302,2]
[401375350,1768165840254,-151.0,0.00023302,2]
[401375351,1768165840263,-151.0,0.00023302,2]
[401375352,1768165840274,-151.0,0.00023302,2]
[401375353,1768165840285,-151.0,0.00023302,2]
[401375354,1768165840295,-151.0,0.00023302,2]
[401375355,1768165840306,-151.0,0.00023302,2]
[401375356,1768165840315,-151.0,0.00023302,2]
[401375357,1768165840324,-151.0,0.00023302,2]
[401375358,1768165840333,-151.0,0.00023302,2]
[401375359,1768165840342,-151.0,0.00023302,2]
[401375361,1768165840352,-151.0,0.00023302,2]
[401375362,1768165840361,-151.0,0.00023302,2]
[401375363,1768165840370,-151.0,0.00023302,2]
[401375364,1768165840379,-151.0,0.00023302,2]
[401375365,1768165840389,-151.0,0.00023302,2]
[401375366,1768165840399,-151.0,0.00023302,2]
[401375368,1768165840411,-151.0,0.00023302,2]
[401375370,1768165840421,-2475.71832352,0.00023307,2]
[401375371,1768165840431,-257.2,0.00023321,2]
[401375373,1768165840441,-1821.0,0.00023337,2]
[401375375,1768165840451,-151.0,0.000234,10]
[401375377,1768165840461,-611.55196731,0.00023407,8]
[401375379,1768165840470,-841.2,0.00023456,2]
[401375381,1768165840480,-706.0,0.00023458,2]
[401375383,1768165840490,-1821.0,0.00023531,2]
[401375385,1768165840499,-600.0,0.00023562,2]
[401375387,1768165840509,-431.088,0.00023563,4]
[401375389,1768165840519,-178.052,0.00023563,4]
[401375391,1768165840528,-1820.0,0.00023611,2]
[401375393,1768165840538,-1000.0,0.00023655,5]
[401375395,1768165840547,-3464.41798244,0.00023655,2]
[401375406,1768165840647,-4065.56158684,0.00023655,2]
[401375408,1768165840658,-151.0,0.000237,7]
[401375411,1768165840668,-2608.13543554,0.00023737,2]
[401375413,1768165840677,-2475.71832352,0.00023781,2]
[401375414,1768165840686,-500.0,0.00023837,2]
[401375416,1768165840696,-153.96461209,0.00023837,2]
[401375419,1768165840706,-151.71242224,0.00023837,2]
[401375421,1768165840715,-5476.0,0.00023837,2]
[401375423,1768165840725,-151.54915065,0.00023837,2]
[401375425,1768165840734,-200.0,0.00023837,2]
[401375427,1768165840743,-500.0,0.00023837,2]
[401375429,1768165840752,-500.0,0.00023837,2]
[401375431,1768165840762,-500.0,0.00023837,2]
[401375433,1768165840771,-250.0,0.00023837,2]
[401375435,1768165840780,-500.0,0.00023837,2]
[401375436,1768165840789,-500.0,0.00023837,2]
[401375439,1768165840799,-500.0,0.00023837,2]
[401375441,1768165840808,-210.56827625,0.00023837,2]
[401375442,1768165840817,-500.0,0.00023837,2]
[401375445,1768165840827,-170.20314176,0.00023837,2]
[401375447,1768165840836,-276.55594314,0.00023837,2]
[401375449,1768165840845,-199.159535,0.0002385,2]
[401375451,1768165840854,-199.159535,0.0002385,2]
[401375453,1768165840864,-199.159535,0.0002385,2]
[401375455,1768165840873,-199.159535,0.0002385,2]
[401375456,1768165840886,-151.0,0.0002385,2]
[401375458,1768165840895,-2948.424456,0.0002385,2]
[401375460,1768165840904,-2948.424456,0.0002385,2]
[401375462,1768165840914,-2948.424456,0.0002385,2]
[401375464,1768165840923,-2948.424456,0.0002385,2]
[401375466,1768165840932,-399.505207,0.0002385,2]
[401375468,1768165840941,-399.505207,0.0002385,2]
[401375470,1768165840950,-399.505207,0.0002385,2]
[401375472,1768165840960,-399.505207,0.0002385,2]
[401375474,1768165840969,-151.0,0.0002385,2]
[401375476,1768165840977,-151.0,0.0002385,2]
[401375478,1768165840987,-216.477355,0.0002385,2]
[401375480,1768165841000,-216.477355,0.0002385,2]
[401375482,1768165841009,-216.477355,0.0002385,2]
[401375484,1768165841019,-216.477355,0.0002385,2]
[401375486,1768165841028,-151.0,0.0002385,2]
[401375488,1768165841037,-152.567384,0.0002385,2]
[401375490,1768165841047,-151.0,0.0002385,2]
[401375492,1768165841056,-177.552931,0.0002385,2]
[401375494,1768165841065,-177.552931,0.0002385,2]
[401375496,1768165841074,-177.552931,0.0002385,2]
[401375498,1768165841084,-177.552931,0.0002385,2]
[401375500,1768165841096,-151.0,0.0002385,2]
[401375502,1768165841105,-194.480203,0.0002385,2]
[401375504,1768165841114,-194.480203,0.0002385,2]
[401375506,1768165841124,-194.480203,0.0002385,2]
[401375508,1768165841134,-194.480203,0.0002385,2]
[401375510,1768165841148,-151.292503,0.0002385,2]
[401375512,1768165841158,-151.0,0.0002385,2]
[401375514,1768165841167,-306.783496,0.0002385,2]
[401375516,1768165841177,-306.783496,0.0002385,2]
[401375518,1768165841187,-151.0,0.0002385,2]
[401375520,1768165841196,-306.783496,0.0002385,2]
[401375522,1768165841205,-151.0,0.0002385,2]
[401375524,1768165841215,-151.0,0.0002385,2]
[401375526,1768165841224,-306.783496,0.0002385,2]
[401375528,1768165841233,-218.019088,0.0002385,2]
[401375529,1768165841243,-1311.07653,0.0002385,2]
[401375532,1768165841252,-1311.07653,0.0002385,2]
[401375533,1768165841262,-151.0,0.0002385,2]
[401375536,1768165841272,-151.0,0.0002385,2]
[401375538,1768165841281,-151.0,0.0002385,2]
[401375539,1768165841291,-151.0,0.0002385,2]
[401375542,1768165841300,-981.203249,0.0002385,2]
[401375544,1768165841310,-582.663486,0.0002385,2]
[401375546,1768165841320,-981.203249,0.0002385,2]
[401375548,1768165841329,-582.663486,0.0002385,2]
[401375550,1768165841338,-981.203249,0.0002385,2]
[401375551,1768165841347,-582.663486,0.0002385,2]
[401375554,1768165841357,-981.203249,0.0002385,2]
[401375556,1768165841367,-582.663486,0.0002385,2]
[401375558,1768165841376,-151.0,0.0002385,2]
[401375560,1768165841386,-151.0,0.0002385,2]
[401375562,1768165841396,-151.0,0.0002385,2]
[401375563,1768165841407,-151.0,0.0002385,2]
[401375566,1768165841418,-151.0,0.0002385,2]
[401375568,1768165841428,-151.0,0.0002385,2]
[401375569,1768165841439,-151.0,0.0002385,2]
[401375571,1768165841450,-189.77985,0.0002385,2]
[401375574,1768165841459,-189.77985,0.0002385,2]
[401375575,1768165841468,-189.77985,0.0002385,2]
[401375577,1768165841478,-319.326659,0.0002385,2]
[401375579,1768165841487,-189.77985,0.0002385,2]
[401375581,1768165841496,-319.326659,0.0002385,2]
[401375583,1768165841505,-319.326659,0.0002385,2]
[401375585,1768165841514,-319.326659,0.0002385,2]
[401375587,1768165841524,-151.0,0.0002385,2]
[401375589,1768165841533,-151.0,0.0002385,2]
[401375591,1768165841543,-151.0,0.0002385,2]
[401375593,1768165841553,-151.0,0.0002385,2]
[401375595,1768165841563,-151.0,0.0002385,2]
[401375598,1768165841572,-151.0,0.0002385,2]
[401375600,1768165841582,-151.0,0.0002385,2]
[401375602,1768165841592,-151.0,0.0002385,2]
[401375604,1768165841601,-151.0,0.0002385,2]
[401375605,1768165841611,-151.0,0.0002385,2]
[401375607,1768165841621,-151.0,0.0002385,2]
[401375610,1768165841631,-151.0,0.0002385,2]
[401375612,1768165841642,-151.0,0.0002385,2]
[401375613,1768165841652,-151.0,0.0002385,2]
[401375616,1768165841661,-151.0,0.0002385,2]
[401375617,1768165841670,-226.11193,0.0002385,2]
[401375619,1768165841680,-31110.0,0.0002385,2]
[401375621,1768165841690,-706.0,0.00023876,2]
[401375623,1768165841699,-151.0,0.00023876,2]
[401375625,1768165841709,-151.0,0.00023876,2]
[401375627,1768165841719,-151.0,0.00023876,2]
[401375629,1768165841729,-373.355915,0.00023876,2]
[401375631,1768165841738,-373.355915,0.00023876,2]
[401375633,1768165841747,-373.355915,0.00023876,2]
[401375635,1768165841756,-373.355915,0.00023876,2]
[401375637,1768165841766,-151.0,0.00023876,2]
[401375639,1768165841776,-151.0,0.00023876,2]
[401375641,1768165841785,-151.0,0.00023876,2]
[401375643,1768165841794,-151.0,0.00023876,2]
[401375645,1768165841804,-3732.48,0.000239,14]
[401375647,1768165841814,-151.0,0.000239,5]
[401375649,1768165841823,-500.0,0.00023974,2]
[401375651,1768165841833,-5476.0,0.00023974,2]
[401375653,1768165841843,-500.0,0.00023974,2]
[401375655,1768165841852,-601.55233838,0.00023974,2]
[401375657,1768165841861,-500.0,0.00023974,2]
[401375659,1768165841870,-500.0,0.00023974,2]
[401375661,1768165841879,-500.0,0.00023974,2]
[401375663,1768165841889,-500.0,0.00023974,2]
[401375665,1768165841898,-500.0,0.00023974,2]
[401375667,1768165841907,-503.453676,0.00023981,2]
[401375669,1768165841917,-503.453676,0.00023981,2]
[401375671,1768165841926,-503.453676,0.00023981,2]
[401375673,1768165841936,-503.453676,0.00023981,2]
[401375675,1768165841946,-151.0,0.00023981,5]
[401375677,1768165841956,-151.0,0.00023981,5]
[401375680,1768165841967,-250.0,0.00023981,5]
[401375682,1768165841976,-151.0,0.00023981,5]
[401375683,1768165841985,-250.0,0.00023981,5]
[401375686,1768165841995,-250.0,0.00023981,5]
[401375687,1768165842004,-250.0,0.00023981,5]
[401375689,1768165842013,-151.0,0.00023981,5]
[401375691,1768165842023,-496.47127164,0.00023981,5]
[401375694,1768165842032,-250.0,0.00023981,5]
[401375696,1768165842041,-250.0,0.00023981,5]
[401375698,1768165842050,-250.0,0.00023981,5]
[401375700,1768165842059,-151.0,0.00023981,5]
[401375702,1768165842068,-514.84070869,0.00023981,5]
[401375704,1768165842077,-250.0,0.00023981,5]
[401375706,1768165842087,-250.0,0.00023981,5]
[401375708,1768165842096,-250.0,0.00023981,5]
[401375710,1768165842105,-151.0,0.00023981,5]
[401375712,1768165842115,-250.0,0.00023981,5]
[401375714,1768165842124,-533.88981491,0.00023981,5]
[401375715,1768165842133,-250.0,0.00023981,5]
[401375717,1768165842143,-250.0,0.00023981,5]
[401375719,1768165842154,-151.0,0.00023981,5]
[401375721,1768165842163,-250.0,0.00023981,5]
[401375724,1768165842172,-553.64373807,0.00023981,5]
[401375725,1768165842181,-250.0,0.00023981,5]
[401375728,1768165842191,-250.0,0.00023981,5]
[401375730,1768165842200,-151.0,0.00023981,5]
[401375732,1768165842210,-574.12855637,0.00023981,5]
[401375733,1768165842219,-265.04542702,0.00023981,5]
[401375736,1768165842229,-252.94566259,0.00023981,5]
[401375738,1768165842238,-151.0,0.00023981,5]
[401375740,1768165842248,-250.0,0.00023981,5]
[401375742,1768165842257,-151.0,0.00023981,5]
[401375744,1768165842267,-595.37131296,0.00023981,5]
[401375746,1768165842276,-151.0,0.00023981,5]
[401375747,1768165842286,-250.0,0.00023981,5]
[401375750,1768165842295,-617.40005154,0.00023981,5]
[401375752,1768165842305,-151.0,0.00023981,5]
[401375754,1768165842314,-151.0,0.00023981,5]
[401375756,1768165842323,-291.2784889,0.00023981,5]
[401375757,1768165842332,-640.24385345,0.00023981,5]
[401375760,1768165842341,-151.0,0.00023981,5]
[401375761,1768165842352,-151.0,0.00023981,5]
[401375764,1768165842361,-663.93287602,0.00023981,5]
[401375766,1768165842371,-151.0,0.00023981,5]
[401375768,1768165842382,-151.0,0.00023981,5]
[401375769,1768165842393,-688.49839244,0.00023981,5]
[401375771,1768165842402,-151.0,0.00023981,5]
[401375772,1768165842412,-151.0,0.00023981,5]
[401375773,1768165842421,-713.97283296,0.00023981,5]
[401375774,1768165842431,-152.53645226,0.00023981,5]
[401375775,1768165842440,-151.0,0.00023981,5]
[401375776,1768165842449,-250.0,0.00023981,5]
[401375777,1768165842458,-740.38982778,0.00023981,5]
[401375778,1768165842467,-241.8234162,0.00023981,5]
[401375779,1768165842477,-250.0,0.00023981,5]
[401375780,1768165842487,-767.7842514,0.00023981,5]
[401375781,1768165842496,-250.0,0.00023981,5]
[401375782,1768165842505,-250.0,0.00023981,5]
[401375783,1768165842515,-250.0,0.00023981,5]
[401375784,1768165842525,-500.0,0.00023981,5]
[401375785,1768165842534,-500.0,0.00023981,5]
[401375786,1768165842543,-2398.4119403,0.00023981,5]
[401375787,1768165842552,-500.0,0.00023981,5]
[401375788,1768165842562,-796.19226871,0.00023981,5]
[401375789,1768165842571,-250.0,0.00023981,5]
[401375790,1768165842580,-2487.15318209,0.00023981,5]
[401375791,1768165842589,-500.0,0.00023981,5]
[401375792,1768165842599,-250.0,0.00023981,5]
[401375793,1768165842608,-825.65138265,0.00023981,5]
[401375794,1768165842617,-2579.17784983,0.00023981,5]
[401375795,1768165842627,-500.0,0.00023981,5]
[401375796,1768165842636,-250.0,0.00023981,5]
[401375797,1768165842646,-2674.60743027,0.00023981,5]
[401375798,1768165842655,-500.0,0.00023981,5]
[401375799,1768165842665,-250.0,0.00023981,5]
[401375800,1768165842674,-2773.56790519,0.00023981,5]
[401375801,1768165842684,-151.0,0.00023981,5]
[401375802,1768165842693,-500.0,0.00023981,5]
[401375804,1768165842702,-250.0,0.00023981,5]
[401375806,1768165842711,-2876.18991768,0.00023981,5]
[401375808,1768165842721,-151.0,0.00023981,5]
[401375810,1768165842730,-500.0,0.00023981,5]
[401375812,1768165842739,-2982.60894464,0.00023981,5]
[401375814,1768165842748,-250.0,0.00023981,5]
[401375816,1768165842757,-151.0,0.00023981,5]
[401375818,1768165842767,-151.0,0.00023981,5]
[401375829,1768165842861,-500.0,0.00023981,5]
[401375831,1768165842871,-3092.96547559,0.00023981,5]
[401375833,1768165842880,-250.0,0.00023981,5]
[401375835,1768165842891,-296.59935167,0.00023981,5]
[401375837,1768165842900,-500.0,0.00023981,5]
[401375839,1768165842909,-3207.40519818,0.00023981,5]
[401375841,1768165842918,-151.0,0.00023981,5]
[401375843,1768165842928,-500.0,0.00023981,5]
[401375845,1768165842938,-3326.07919052,0.00023981,5]
[401375847,1768165842947,-250.0,0.00023981,5]
[401375849,1768165842957,-151.0,0.00023981,5]
[401375851,1768165842966,-500.0,0.00023981,5]
[401375854,1768165842976,-3449.14412057,0.00023981,5]
[401375856,1768165842985,-250.0,0.00023981,5]
[401375858,1768165842994,-151.0,0.00023981,5]
[401375860,1768165843003,-500.0,0.00023981,5]
[401375862,1768165843012,-250.0,0.00023981,5]
[401375864,1768165843021,-3576.76245303,0.00023981,5]
[401375866,1768165843030,-151.0,0.00023981,5]
[401375868,1768165843040,-500.0,0.00023981,5]
[401375871,1768165843049,-3709.10266379,0.00023981,5]
[401375873,1768165843059,-151.0,0.00023981,5]
[401375876,1768165843068,-500.0,0.00023981,5]
[401375878,1768165843077,-3846.33946235,0.00023981,5]
[401375880,1768165843086,-151.0,0.00023981,5]
[401375882,1768165843095,-3988.65402246,0.00023981,5]
[401375884,1768165843104,-151.0,0.00023981,5]
[401375886,1768165843113,-151.0,0.00023981,5]
[401375888,1768165843123,-151.0,0.00023981,5]
[401375890,1768165843132,-151.0,0.00023981,5]
[401375892,1768165843141,-151.0,0.00023981,5]
[401375894,1768165843154,-151.0,0.00023981,5]
[401375896,1768165843163,-311.85701,0.00023981,5]
[401375898,1768165843172,-323.39571937,0.00023981,5]
[401375900,1768165843182,-335.36136099,0.00023981,5]
[401375902,1768165843192,-347.76973134,0.00023981,5]
[401375904,1768165843201,-282.0,0.00024055,12]
[401375906,1768165843211,-2475.71832358,0.00024055,2]
[401375908,1768165843222,-151.0,0.000241,7]
[401375910,1768165843231,-658.57810264,0.00024104,2]
[401375912,1768165843240,-750.0,0.0002411,2]
[401375914,1768165843249,-299.999999,0.00024111,2]
[401375916,1768165843259,-500.0,0.00024111,2]
[401375918,1768165843269,-5476.0,0.00024111,2]
[401375920,1768165843278,-500.0,0.00024111,2]
[401375922,1768165843288,-500.0,0.00024111,2]
[401375924,1768165843298,-500.0,0.00024111,2]
[401375926,1768165843307,-625.58637142,0.00024111,2]
[401375928,1768165843316,-500.0,0.00024111,2]
[401375930,1768165843325,-150.69939601,0.00024111,2]
[401375932,1768165843335,-151.0,0.00024111,2]
[401375934,1768165843344,-151.0,0.00024111,2]
[401375936,1768165843354,-177.831998,0.00024111,2]
[401375938,1768165843363,-151.0,0.00024111,2]
[401375940,1768165843372,-151.0,0.00024111,2]
[401375942,1768165843381,-277.4352,0.00024111,2]
[401375944,1768165843391,-277.4352,0.00024111,2]
[401375946,1768165843400,-277.4352,0.00024111,2]
[401375948,1768165843410,-277.4352,0.00024111,2]
[401375950,1768165843420,-151.0,0.00024111,2]
[401375952,1768165843430,-151.0,0.00024111,2]
[401375954,1768165843441,-151.0,0.00024111,2]
[401375956,1768165843450,-3119.20763148,0.00024142,2]
[401375958,1768165843460,-6073.54708436,0.00024142,2]
[401375960,1768165843470,-1000.0,0.00024142,2]
[401375962,1768165843479,-522.88083953,0.00024142,2]
[401375964,1768165843488,-2091.52335813,0.00024142,2]